[Event "Snabb-SM för veteraner, 50+ 2019"]
[Site "Schackcentrum, Vegagatan 20, Gothenburg, Sweden"]
[Date "2019.10.05"]
[Round "6.6"]
[White "Bergre, Joachim"]
[Black "Andersson, Johan"]
[Result "0-1"]
[TimeControl "15 minutes + 10 seconds per move from move one"]
[WhiteFideId "1704893"]
[BlackFideId "1703935"]
[WhiteElo "2035"]
[BlackElo "2152"]

1. Nf3 {[%clk 00:15:16]} {[%emt 00:00:03]} f5 {[%clk 00:14:42]} {[%emt
00:00:39]} 2. d3 {[%clk 00:15:22]} {[%emt 00:00:04]} Nc6 {[%clk 00:14:47]}
{[%emt 00:00:05]} 3. e4 {[%clk 00:15:26]} {[%emt 00:00:06]} e5 {[%clk
00:14:49]} {[%emt 00:00:08]} 4. exf5 {[%clk 00:14:50]} {[%emt 00:00:46]} d5
{[%clk 00:14:41]} {[%emt 00:00:18]} 5. Bg5 {[%clk 00:14:49]} {[%emt 00:00:11]}
Be7 {[%clk 00:13:40]} {[%emt 00:01:11]} 6. Bxe7 {[%clk 00:14:23]} {[%emt
00:00:35]} Qxe7 {[%clk 00:13:43]} {[%emt 00:00:08]} 7. Nc3 {[%clk 00:13:21]}
{[%emt 00:01:12]} d4 {[%clk 00:12:29]} {[%emt 00:01:24]} 8. Ne4 {[%clk
00:11:54]} {[%emt 00:01:36]} Bxf5 {[%clk 00:12:25]} {[%emt 00:00:15]} 9. Qd2
{[%clk 00:11:55]} {[%emt 00:00:09]} O-O-O {[%clk 00:11:16]} {[%emt 00:01:19]}
10. O-O-O {[%clk 00:11:45]} {[%emt 00:00:20]} Nf6 {[%clk 00:10:41]} {[%emt
00:00:46]} 11. Nxf6 {[%clk 00:11:09]} {[%emt 00:00:44]} gxf6 {[%clk 00:10:04]}
{[%emt 00:00:48]} 12. a3 {[%clk 00:10:36]} {[%emt 00:00:44]} Qc5 {[%clk
00:08:19]} {[%emt 00:01:54]} 13. Kb1 {[%clk 00:10:10]} {[%emt 00:00:36]} Rhg8
{[%clk 00:07:49]} {[%emt 00:00:40]} 14. Qc1 {[%clk 00:09:15]} {[%emt 00:01:05]}
Qd5 {[%clk 00:07:34]} {[%emt 00:00:26]} 15. Nd2 {[%clk 00:08:44]} {[%emt
00:00:40]} Be6 {[%clk 00:07:15]} {[%emt 00:00:29]} 16. b3 {[%clk 00:08:40]}
{[%emt 00:00:13]} f5 {[%clk 00:07:00]} {[%emt 00:00:26]} 17. f3 {[%clk
00:08:42]} {[%emt 00:00:07]} Qd6 {[%clk 00:06:15]} {[%emt 00:00:55]} 18. Kb2
{[%clk 00:07:53]} {[%emt 00:00:59]} Qc5 {[%clk 00:04:58]} {[%emt 00:01:28]} 19.
Nb1 {[%clk 00:06:57]} {[%emt 00:01:06]} Rg6 {[%clk 00:04:26]} {[%emt 00:00:42]}
20. g3 {[%clk 00:05:52]} {[%emt 00:01:15]} Ne7 {[%clk 00:04:21]} {[%emt
00:00:16]} 21. Rd2 {[%clk 00:04:37]} {[%emt 00:01:25]} Nd5 {[%clk 00:04:19]}
{[%emt 00:00:11]} 22. Re2 {[%clk 00:04:28]} {[%emt 00:00:19]} Ne3 {[%clk
00:02:55]} {[%emt 00:01:34]} 23. c4 {[%clk 00:03:04]} {[%emt 00:01:33]} Bd7
{[%clk 00:02:40]} {[%emt 00:00:26]} 24. Re1 {[%clk 00:02:12]} {[%emt 00:01:03]}
Bc6 {[%clk 00:02:43]} {[%emt 00:00:07]} 25. Be2 {[%clk 00:02:20]} {[%emt
00:00:01]} e4 {[%clk 00:02:19]} {[%emt 00:00:34]} 26. fxe4 {[%clk 00:02:11]}
{[%emt 00:00:19]} fxe4 {[%clk 00:02:27]} {[%emt 00:00:02]} 27. Rhg1 {[%clk
00:01:59]} {[%emt 00:00:22]} Rf6 {[%clk 00:02:13]} {[%emt 00:00:24]} 28. Bf1
{[%clk 00:01:33]} {[%emt 00:00:35]} Rf2+ {[%clk 00:01:40]} {[%emt 00:00:44]} 29.
Re2 {[%clk 00:01:42]} Rdf8 {[%clk 00:01:39]} {[%emt 00:00:11]} 30. Bh3+ {[%clk
00:01:51]} Kb8 {[%clk 00:01:40]} {[%emt 00:00:10]} 31. Qe1 {[%clk 00:01:35]}
{[%emt 00:00:26]} Rxe2+ {[%clk 00:01:16]} {[%emt 00:00:34]} 32. Qxe2 {[%clk
00:01:45]} exd3 {[%clk 00:01:11]} {[%emt 00:00:14]} 33. Qxd3 {[%clk 00:01:53]}
{[%emt 00:00:01]} Rf2+ {[%clk 00:01:07]} {[%emt 00:00:14]} 34. Nd2 {[%clk
00:01:57]} {[%emt 00:00:06]} Rxh2 {[%clk 00:00:56]} {[%emt 00:00:22]} 35. Bf1
{[%clk 00:01:14]} {[%emt 00:00:52]} Qe5 {[%clk 00:01:02]} {[%emt 00:00:03]} 36.
Kb1 {[%clk 00:01:13]} {[%emt 00:00:18]} a5 {[%clk 00:00:53]} {[%emt 00:00:15]}
37. b4 {[%clk 00:01:09]} {[%emt 00:00:13]} axb4 {[%clk 00:00:58]} {[%emt
00:00:05]} 38. axb4 {[%clk 00:01:18]} Bd7 {[%clk 00:00:35]} {[%emt 00:00:32]}
39. Kc1 {[%clk 00:01:13]} {[%emt 00:00:16]} Bf5 {[%clk 00:00:42]} {[%emt
00:00:04]} 40. Qa3 {[%clk 00:01:11]} {[%emt 00:00:12]} Bg6 {[%clk 00:00:35]}
{[%emt 00:00:15]} 41. Bd3 {[%clk 00:01:12]} {[%emt 00:00:10]} Qf6 {[%clk
00:00:28]} {[%emt 00:00:16]} 42. Bxg6 {[%clk 00:00:51]} {[%emt 00:00:31]} hxg6
{[%clk 00:00:28]} {[%emt 00:00:10]} 43. Qd3 {[%clk 00:00:20]} {[%emt 00:00:40]}
Qf2 {[%clk 00:00:34]} {[%emt 00:00:05]} 44. Rd1 {[%clk 00:00:20]} {[%emt
00:00:10]} Nxd1 {[%clk 00:00:36]} {[%emt 00:00:08]} 45. Kxd1 {[%clk 00:00:28]}
Rg2 {[%clk 00:00:34]} {[%emt 00:00:11]} 0-1

[Event "Snabb-SM för veteraner, 50+ 2019"]
[Site "Schackcentrum, Vegagatan 20, Gothenburg, Sweden"]
[Date "2019.10.05"]
[Round "6.7"]
[White "Wesslen, Ulf"]
[Black "Hautajarvi, Jukka"]
[Result "1-0"]
[TimeControl "15 minutes + 10 seconds per move from move one"]
[WhiteFideId "1705199"]
[BlackFideId "1716190"]
[WhiteElo "1971"]
[BlackElo "2145"]

1. d4 {[%clk 00:14:45]} {[%emt 00:00:35]} Nf6 {[%clk 00:15:12]} {[%emt
00:00:08]} 2. c4 {[%clk 00:14:52]} {[%emt 00:00:03]} c5 {[%clk 00:15:04]}
{[%emt 00:00:18]} 3. d5 {[%clk 00:14:55]} {[%emt 00:00:07]} e5 {[%clk
00:15:11]} {[%emt 00:00:03]} 4. Nc3 {[%clk 00:14:21]} {[%emt 00:00:43]} d6
{[%clk 00:15:20]} {[%emt 00:00:02]} 5. h3 {[%clk 00:13:29]} {[%emt 00:01:02]}
Bf5 {[%clk 00:14:50]} {[%emt 00:00:39]} 6. e3 {[%clk 00:11:10]} {[%emt
00:02:29]} Be7 {[%clk 00:14:49]} {[%emt 00:00:11]} 7. g4 {[%clk 00:09:52]}
{[%emt 00:01:27]} Bg6 {[%clk 00:14:55]} {[%emt 00:00:04]} 8. Bg2 {[%clk
00:09:11]} {[%emt 00:00:53]} Nbd7 {[%clk 00:15:00]} {[%emt 00:00:05]} 9. Nge2
{[%clk 00:08:54]} {[%emt 00:00:26]} h6 {[%clk 00:12:40]} {[%emt 00:02:30]} 10.
Ng3 {[%clk 00:08:29]} {[%emt 00:00:36]} a6 {[%clk 00:12:17]} {[%emt 00:00:33]}
11. Nf5 {[%clk 00:06:09]} {[%emt 00:02:29]} Bxf5 {[%clk 00:11:54]} {[%emt
00:00:33]} 12. gxf5 {[%clk 00:06:18]} {[%emt 00:00:02]} Nb6 {[%clk 00:11:59]}
{[%emt 00:00:04]} 13. Qe2 {[%clk 00:06:16]} {[%emt 00:00:12]} Qd7 {[%clk
00:12:02]} {[%emt 00:00:08]} 14. e4 {[%clk 00:05:29]} {[%emt 00:00:57]} Na4
{[%clk 00:12:10]} {[%emt 00:00:01]} 15. Qc2 {[%clk 00:04:41]} {[%emt 00:00:58]}
Nxc3 {[%clk 00:12:17]} {[%emt 00:00:04]} 16. Qxc3 {[%clk 00:04:49]} {[%emt
00:00:02]} b5 {[%clk 00:12:25]} {[%emt 00:00:02]} 17. Rg1 {[%clk 00:04:41]}
{[%emt 00:00:17]} bxc4 {[%clk 00:11:10]} {[%emt 00:01:25]} 18. Bf3 {[%clk
00:04:37]} {[%emt 00:00:14]} g5 {[%clk 00:09:40]} {[%emt 00:01:40]} 19. fxg6
{[%clk 00:04:06]} {[%emt 00:00:41]} fxg6 {[%clk 00:09:49]} {[%emt 00:00:02]} 20.
Rxg6 {[%clk 00:03:56]} {[%emt 00:00:19]} Qxh3 {[%clk 00:09:24]} {[%emt
00:00:35]} 21. Rg3 {[%clk 00:03:26]} {[%emt 00:00:40]} Qh4 {[%clk 00:09:29]}
{[%emt 00:00:05]} 22. Qxc4 {[%clk 00:03:27]} {[%emt 00:00:09]} Kf7 {[%clk
00:09:29]} {[%emt 00:00:09]} 23. Bd2 {[%clk 00:02:43]} {[%emt 00:00:55]} Rag8
{[%clk 00:09:13]} {[%emt 00:00:26]} 24. Rxg8 {[%clk 00:02:21]} {[%emt
00:00:32]} Rxg8 {[%clk 00:09:22]} 25. Ke2 {[%clk 00:02:02]} {[%emt 00:00:29]}
Ng4 {[%clk 00:08:55]} {[%emt 00:00:37]} 26. Rf1 {[%clk 00:01:42]} {[%emt
00:00:30]} Nh2 {[%clk 00:08:00]} {[%emt 00:01:05]} 27. Rh1 {[%clk 00:01:44]}
{[%emt 00:00:08]} Qh3 {[%clk 00:08:05]} {[%emt 00:00:04]} 28. Qd3 {[%clk
00:01:34]} {[%emt 00:00:20]} Rg6 {[%clk 00:07:04]} {[%emt 00:01:11]} 29. Rc1
{[%clk 00:00:39]} {[%emt 00:01:05]} Kg7 {[%clk 00:06:50]} {[%emt 00:00:24]} 30.
Bh1 {[%clk 00:00:48]} {[%emt 00:00:02]} Qh4 {[%clk 00:05:53]} {[%emt 00:01:06]}
31. Rc3 {[%clk 00:00:47]} {[%emt 00:00:11]} Rg1 {[%clk 00:05:34]} {[%emt
00:00:29]} 32. Bf3 {[%clk 00:00:54]} {[%emt 00:00:04]} Rf1 {[%clk 00:05:06]}
{[%emt 00:00:37]} 33. Be1 {[%clk 00:01:00]} {[%emt 00:00:04]} Rg1 {[%clk
00:04:23]} {[%emt 00:00:53]} 34. Qxa6 {[%clk 00:01:06]} {[%emt 00:00:04]} Qh3
{[%clk 00:04:27]} {[%emt 00:00:06]} 35. Bg2 {[%clk 00:00:33]} {[%emt 00:00:43]}
Qh5+ {[%clk 00:04:03]} {[%emt 00:00:34]} 36. Bf3 {[%clk 00:00:37]} {[%emt
00:00:07]} Qf7 {[%clk 00:04:10]} {[%emt 00:00:03]} 37. Bd2 {[%clk 00:00:34]}
{[%emt 00:00:12]} Kh7 {[%clk 00:02:42]} {[%emt 00:01:38]} 38. Ra3 {[%clk
00:00:43]} {[%emt 00:00:01]} Rg7 {[%clk 00:02:39]} {[%emt 00:00:15]} 39. Qc8
{[%clk 00:00:48]} {[%emt 00:00:04]} Qg6 {[%clk 00:01:53]} {[%emt 00:00:56]} 40.
Qh3 {[%clk 00:00:56]} {[%emt 00:00:02]} Nxf3 {[%clk 00:01:58]} {[%emt
00:00:05]} 41. Qxf3 {[%clk 00:01:04]} {[%emt 00:00:04]} Rf7 {[%clk 00:02:03]}
{[%emt 00:00:04]} 42. Qd3 {[%clk 00:01:09]} {[%emt 00:00:05]} Bh4 {[%clk
00:02:08]} {[%emt 00:00:03]} 43. Be3 {[%clk 00:01:17]} {[%emt 00:00:04]} Qg4+
{[%clk 00:02:07]} {[%emt 00:00:10]} 44. Ke1 {[%clk 00:01:19]} {[%emt 00:00:11]}
Qg2 {[%clk 00:01:54]} {[%emt 00:00:20]} 45. Qc2 {[%clk 00:01:17]} {[%emt
00:00:13]} Qh1+ {[%clk 00:01:49]} {[%emt 00:00:14]} 46. Ke2 {[%clk 00:01:16]}
{[%emt 00:00:10]} Qf3+ {[%clk 00:01:58]} {[%emt 00:00:01]} 47. Ke1 {[%clk
00:01:26]} Rg7 {[%clk 00:02:00]} {[%emt 00:00:09]} 48. Qe2 {[%clk 00:01:22]}
{[%emt 00:00:13]} Qxe4 {[%clk 00:01:57]} {[%emt 00:00:12]} 49. Qh5 {[%clk
00:00:52]} {[%emt 00:00:40]} Rg1+ {[%clk 00:01:49]} {[%emt 00:00:17]} 50. Kd2
{[%clk 00:00:56]} {[%emt 00:00:06]} 1-0

[Event "Snabb-SM för veteraner, 50+ 2019"]
[Site "Schackcentrum, Vegagatan 20, Gothenburg, Sweden"]
[Date "2019.10.05"]
[Round "6.8"]
[White "Ansner, Bjorn"]
[Black "Gamback, Bjorn"]
[Result "0-1"]
[TimeControl "15 minutes + 10 seconds per move from move one"]
[BlackTitle "CM"]
[WhiteFideId "1702769"]
[BlackFideId "1703161"]
[WhiteElo "1934"]
[BlackElo "2120"]

1. d4 {[%clk 00:15:16]} {[%emt 00:00:03]} d5 {[%clk 00:15:19]} {[%emt
00:00:03]} 2. Nf3 {[%clk 00:15:10]} {[%emt 00:00:15]} c5 {[%clk 00:15:25]}
{[%emt 00:00:05]} 3. Bf4 {[%clk 00:14:32]} {[%emt 00:00:48]} Nc6 {[%clk
00:15:12]} {[%emt 00:00:23]} 4. e3 {[%clk 00:14:13]} {[%emt 00:00:28]} Bf5
{[%clk 00:14:54]} {[%emt 00:00:29]} 5. c3 {[%clk 00:14:01]} {[%emt 00:00:22]}
e6 {[%clk 00:14:52]} {[%emt 00:00:12]} 6. Bd3 {[%clk 00:13:55]} {[%emt
00:00:15]} Bg6 {[%clk 00:14:33]} {[%emt 00:00:30]} 7. O-O {[%clk 00:12:37]}
{[%emt 00:01:27]} Nf6 {[%clk 00:14:38]} {[%emt 00:00:06]} 8. Ne5 {[%clk
00:12:08]} {[%emt 00:00:38]} Bd6 {[%clk 00:13:19]} {[%emt 00:01:30]} 9. Qe2
{[%clk 00:10:51]} {[%emt 00:01:27]} Qc7 {[%clk 00:11:49]} {[%emt 00:01:41]} 10.
Nd2 {[%clk 00:10:23]} {[%emt 00:00:38]} c4 {[%clk 00:11:17]} {[%emt 00:00:43]}
11. Bxg6 {[%clk 00:09:42]} {[%emt 00:00:50]} hxg6 {[%clk 00:11:24]} {[%emt
00:00:03]} 12. Ndf3 {[%clk 00:08:46]} {[%emt 00:01:05]} Ne4 {[%clk 00:10:49]}
{[%emt 00:00:46]} 13. h3 {[%clk 00:06:58]} {[%emt 00:01:57]} Ne7 {[%clk
00:10:11]} {[%emt 00:00:48]} 14. Bh2 {[%clk 00:05:55]} {[%emt 00:01:13]} f6
{[%clk 00:08:30]} {[%emt 00:01:52]} 15. Ng4 {[%clk 00:05:52]} {[%emt 00:00:12]}
f5 {[%clk 00:08:27]} {[%emt 00:00:14]} 16. Bxd6 {[%clk 00:05:46]} {[%emt
00:00:16]} Qxd6 {[%clk 00:08:36]} 17. Nge5 {[%clk 00:05:27]} {[%emt 00:00:28]}
g5 {[%clk 00:08:44]} {[%emt 00:00:02]} 18. Nd2 {[%clk 00:04:51]} {[%emt
00:00:44]} Nxd2 {[%clk 00:07:31]} {[%emt 00:01:24]} 19. Qxd2 {[%clk 00:04:55]}
{[%emt 00:00:06]} Rh6 {[%clk 00:07:40]} {[%emt 00:00:02]} 20. b3 {[%clk
00:04:30]} {[%emt 00:00:35]} cxb3 {[%clk 00:07:22]} {[%emt 00:00:28]} 21. axb3
{[%clk 00:04:05]} {[%emt 00:00:35]} Ng6 {[%clk 00:07:30]} {[%emt 00:00:01]} 22.
Nxg6 {[%clk 00:03:53]} {[%emt 00:00:23]} Rxg6 {[%clk 00:07:39]} {[%emt
00:00:01]} 23. f4 {[%clk 00:03:58]} {[%emt 00:00:04]} g4 {[%clk 00:07:42]}
{[%emt 00:00:07]} 24. hxg4 {[%clk 00:03:50]} {[%emt 00:00:18]} Rxg4 {[%clk
00:07:49]} {[%emt 00:00:03]} 25. Kf2 {[%clk 00:02:47]} {[%emt 00:01:13]} g5
{[%clk 00:07:44]} {[%emt 00:00:15]} 26. g3 {[%clk 00:02:46]} {[%emt 00:00:10]}
a6 {[%clk 00:06:28]} {[%emt 00:01:27]} 27. Rh1 {[%clk 00:02:37]} {[%emt
00:00:19]} O-O-O {[%clk 00:06:37]} {[%emt 00:00:03]} 28. b4 {[%clk 00:01:32]}
{[%emt 00:01:15]} Rg8 {[%clk 00:06:43]} {[%emt 00:00:04]} 29. Rag1 {[%clk
00:01:38]} {[%emt 00:00:03]} Qb6 {[%clk 00:06:39]} {[%emt 00:00:14]} 30. Rh6
{[%clk 00:01:33]} {[%emt 00:00:14]} Qd6 {[%clk 00:05:54]} {[%emt 00:00:56]} 31.
Rh7 {[%clk 00:01:01]} {[%emt 00:00:42]} gxf4 {[%clk 00:05:40]} {[%emt
00:00:24]} 32. exf4 {[%clk 00:01:06]} {[%emt 00:00:04]} R4g7 {[%clk 00:05:45]}
{[%emt 00:00:06]} 33. Rxg7 {[%clk 00:01:10]} {[%emt 00:00:06]} Rxg7 {[%clk
00:05:55]} 34. Qe3 {[%clk 00:01:16]} {[%emt 00:00:05]} Kd7 {[%clk 00:05:52]}
{[%emt 00:00:13]} 35. Qe5 {[%clk 00:01:20]} {[%emt 00:00:05]} Qxe5 {[%clk
00:05:33]} {[%emt 00:00:29]} 36. fxe5 {[%clk 00:01:26]} {[%emt 00:00:04]} Kc6
{[%clk 00:05:42]} 37. Ke3 {[%clk 00:01:18]} {[%emt 00:00:18]} Kb5 {[%clk
00:05:48]} {[%emt 00:00:04]} 38. Kd3 {[%clk 00:01:24]} {[%emt 00:00:03]} Rg4
{[%clk 00:05:44]} {[%emt 00:00:15]} 39. Ke3 {[%clk 00:00:40]} {[%emt 00:00:53]}
Kc4 {[%clk 00:05:51]} {[%emt 00:00:04]} 40. Kf3 {[%clk 00:00:47]} {[%emt
00:00:03]} Kxc3 {[%clk 00:05:52]} {[%emt 00:00:10]} 41. Rc1+ {[%clk 00:00:55]}
{[%emt 00:00:02]} Kxd4 {[%clk 00:05:48]} {[%emt 00:00:13]} 42. Rc7 {[%clk
00:01:03]} {[%emt 00:00:03]} b5 {[%clk 00:05:49]} {[%emt 00:00:10]} 43. Rc6
{[%clk 00:01:10]} {[%emt 00:00:02]} Kxe5 {[%clk 00:05:57]} {[%emt 00:00:02]} 44.
Rxa6 {[%clk 00:01:18]} {[%emt 00:00:02]} Rxb4 {[%clk 00:06:05]} {[%emt
00:00:01]} 0-1

[Event "Snabb-SM för veteraner, 50+ 2019"]
[Site "Schackcentrum, Vegagatan 20, Gothenburg, Sweden"]
[Date "2019.10.05"]
[Round "6.9"]
[White "Jacobsson, Lennart"]
[Black "Frisk, Hans"]
[Result "1/2-1/2"]
[TimeControl "15 minutes + 10 seconds per move from move one"]
[WhiteFideId "1753320"]
[BlackFideId "1708570"]
[WhiteElo "1833"]
[BlackElo "1948"]

1. e4 {[%clk 00:15:18]} {[%emt 00:00:02]} e5 {[%clk 00:15:13]} {[%emt
00:00:08]} 2. Nf3 {[%clk 00:15:21]} {[%emt 00:00:07]} Nf6 {[%clk 00:15:18]}
{[%emt 00:00:04]} 3. Nc3 {[%clk 00:15:19]} {[%emt 00:00:12]} Bb4 {[%clk
00:15:10]} {[%emt 00:00:18]} 4. d3 {[%clk 00:13:52]} {[%emt 00:01:38]} Nc6
{[%clk 00:14:40]} {[%emt 00:00:40]} 5. Bg5 {[%clk 00:13:52]} h6 {[%clk
00:13:59]} {[%emt 00:01:02]} 6. Bh4 {[%clk 00:13:36]} g5 {[%clk 00:13:17]}
{[%emt 00:01:17]} 7. Bg3 {[%clk 00:13:37]} {[%emt 00:00:09]} d6 {[%clk
00:13:25]} {[%emt 00:00:01]} 8. Be2 {[%clk 00:13:28]} {[%emt 00:00:20]} Be6
{[%clk 00:11:40]} {[%emt 00:01:55]} 9. a3 {[%clk 00:13:13]} {[%emt 00:00:24]}
Bxc3+ {[%clk 00:11:05]} {[%emt 00:00:44]} 10. bxc3 {[%clk 00:13:22]} {[%emt
00:00:01]} O-O {[%clk 00:10:35]} {[%emt 00:00:41]} 11. Rb1 {[%clk 00:13:30]}
{[%emt 00:00:02]} b6 {[%clk 00:10:32]} {[%emt 00:00:12]} 12. h4 {[%clk
00:12:24]} {[%emt 00:01:16]} g4 {[%clk 00:09:54]} {[%emt 00:00:48]} 13. Nh2
{[%clk 00:12:11]} {[%emt 00:00:24]} h5 {[%clk 00:09:28]} {[%emt 00:00:36]} 14.
f3 {[%clk 00:12:09]} {[%emt 00:00:12]} Kh7 {[%clk 00:07:11]} {[%emt 00:02:27]}
15. fxg4 {[%clk 00:12:05]} {[%emt 00:00:15]} hxg4 {[%clk 00:05:40]} {[%emt
00:01:41]} 16. Nxg4 {[%clk 00:12:12]} {[%emt 00:00:03]} Rg8 {[%clk 00:05:27]}
{[%emt 00:00:23]} 17. Nxf6+ {[%clk 00:11:51]} {[%emt 00:00:31]} Qxf6 {[%clk
00:05:35]} {[%emt 00:00:02]} 18. Rf1 {[%clk 00:10:44]} {[%emt 00:01:17]} Qg6
{[%clk 00:05:36]} {[%emt 00:00:08]} 19. Rf3 {[%clk 00:10:32]} {[%emt 00:00:22]}
Bg4 {[%clk 00:05:10]} {[%emt 00:00:36]} 20. Re3 {[%clk 00:10:40]} {[%emt
00:00:02]} Qh5 {[%clk 00:03:35]} {[%emt 00:01:47]} 21. Kd2 {[%clk 00:09:05]}
{[%emt 00:01:44]} Ne7 {[%clk 00:02:18]} {[%emt 00:01:26]} 22. Qf1 {[%clk
00:08:05]} {[%emt 00:01:11]} f5 {[%clk 00:01:58]} {[%emt 00:00:30]} 23. exf5
{[%clk 00:07:54]} {[%emt 00:00:21]} Nxf5 {[%clk 00:01:59]} {[%emt 00:00:09]} 24.
Bxg4 {[%clk 00:03:50]} {[%emt 00:04:14]} Nxe3 {[%clk 00:01:26]} {[%emt
00:00:43]} 25. Bxh5 {[%clk 00:02:44]} {[%emt 00:01:16]} Nxf1+ {[%clk 00:01:33]}
{[%emt 00:00:02]} 26. Rxf1 {[%clk 00:02:50]} {[%emt 00:00:05]} Rxg3 {[%clk
00:01:39]} {[%emt 00:00:04]} 27. Rf7+ {[%clk 00:02:20]} {[%emt 00:00:40]} Rg7
{[%clk 00:01:23]} {[%emt 00:00:26]} 28. Rxg7+ {[%clk 00:02:01]} {[%emt
00:00:30]} Kxg7 {[%clk 00:01:31]} {[%emt 00:00:02]} 29. Bf3 {[%clk 00:02:04]}
{[%emt 00:00:06]} Rh8 {[%clk 00:01:34]} {[%emt 00:00:07]} 30. h5 {[%clk
00:02:12]} {[%emt 00:00:02]} Kf6 {[%clk 00:01:43]} 31. Ke3 {[%clk 00:02:18]}
{[%emt 00:00:05]} Kg5 {[%clk 00:01:52]} {[%emt 00:00:01]} 32. Ke4 {[%clk
00:02:21]} {[%emt 00:00:06]} c6 {[%clk 00:01:52]} {[%emt 00:00:11]} 33. c4
{[%clk 00:02:26]} {[%emt 00:00:05]} Rf8 {[%clk 00:01:49]} {[%emt 00:00:13]} 34.
Ke3 {[%clk 00:02:27]} {[%emt 00:00:10]} Rc8 {[%clk 00:01:40]} {[%emt 00:00:17]}
35. Ke4 {[%clk 00:02:11]} {[%emt 00:00:26]} Rc7 {[%clk 00:01:48]} {[%emt
00:00:02]} 36. a4 {[%clk 00:02:11]} {[%emt 00:00:10]} a5 {[%clk 00:01:57]}
{[%emt 00:00:02]} 37. Ke3 {[%clk 00:02:18]} {[%emt 00:00:02]} d5 {[%clk
00:01:21]} {[%emt 00:00:54]} 38. cxd5 {[%clk 00:01:10]} {[%emt 00:01:11]} cxd5
{[%clk 00:01:30]} 39. Kd2 {[%clk 00:01:11]} {[%emt 00:00:09]} Rc5 {[%clk
00:01:31]} {[%emt 00:00:09]} 40. c3 {[%clk 00:01:14]} {[%emt 00:00:07]} e4
{[%clk 00:01:23]} {[%emt 00:00:18]} 41. dxe4 {[%clk 00:01:09]} {[%emt
00:00:15]} dxe4 {[%clk 00:01:31]} {[%emt 00:00:03]} 42. Bxe4 {[%clk 00:01:02]}
{[%emt 00:00:16]} Kxh5 {[%clk 00:01:39]} {[%emt 00:00:01]} 43. Kd3 {[%clk
00:01:08]} {[%emt 00:00:04]} Kg4 {[%clk 00:01:44]} {[%emt 00:00:03]} 44. Bf3+
{[%clk 00:01:17]} {[%emt 00:00:03]} Kf4 {[%clk 00:01:48]} {[%emt 00:00:06]} 45.
Kd4 {[%clk 00:01:26]} Rg5 {[%clk 00:01:33]} {[%emt 00:00:25]} 46. Kd3 {[%clk
00:01:16]} {[%emt 00:00:20]} Ke5 {[%clk 00:01:24]} {[%emt 00:00:19]} 47. Ke3
{[%clk 00:01:17]} {[%emt 00:00:09]} Rg3 {[%clk 00:01:16]} {[%emt 00:00:18]} 48.
Kd3 {[%clk 00:01:16]} {[%emt 00:00:12]} Kd6 {[%clk 00:01:17]} {[%emt 00:00:09]}
49. Kc4 {[%clk 00:01:11]} {[%emt 00:00:14]} Rg5 {[%clk 00:01:21]} {[%emt
00:00:07]} 50. Kd4 {[%clk 00:01:10]} {[%emt 00:00:11]} Rf5 {[%clk 00:01:07]}
{[%emt 00:00:24]} 51. Kc4 {[%clk 00:01:05]} {[%emt 00:00:15]} Rg5 {[%clk
00:00:50]} {[%emt 00:00:30]} 52. Kd4 {[%clk 00:01:12]} Re5 {[%emt 00:00:12]}
1/2-1/2